[Event "11th LCC Super Blitz 2019"]
[Site "London"]
[Date "2019.12.08"]
[Round "11.8"]
[White "Iyengar, Ilya"]
[Black "Balaji, Aaravamudhan"]
[Result "0-1"]
[ECO "E69"]
[WhiteElo "1984"]
[BlackElo "2120"]
[Annotator "NA"]
[PlyCount "102"]
[EventDate "2019.12.08"]
[EventType "swiss"]
[EventCountry "ENG"]
[SourceTitle "playchess.com"]
[Source "ChessBase"]
[SourceQuality "1"]
[TimeControl "180+2"]

1. d4 {[%emt 0:00:00]} Nf6 {[%emt 0:00:00]} 2. Nf3 {[%emt 0:00:00]} g6 {[%emt 0:00:00]} 3. g3 {[%emt 0:00:02]} Bg7 {[%emt 0:00:00]} 4. Bg2 {[%emt 0:00:01]} O-O {[%emt 0:00:01]} 5. c4 {[%emt 0:00:01]} d6 {[%emt 0:00:00]} 6. O-O {[%emt 0:00:02]} Nbd7 {[%emt 0:00:01]} 7. Nc3 {[%emt 0:00:03]} e5 {[%emt 0:00:01]} 8. e4 {[%emt 0:00:01]} c6 {[%emt 0:00:01]} 9. h3 {[%emt 0:00:01]} Qa5 {[%emt 0:00:02]} 10. Re1 {[%emt 0:00:03]} Ne8 {[%emt 0:00:10]} 11. Rb1 {[%emt 0:00:58]} f5 {[%emt 0:00:16]} 12. exf5 {[%emt 0:00:05]} gxf5 {[%emt 0:00:01]} 13. dxe5 {[%emt 0:00:02]} dxe5 {[%emt 0:00:02]} 14. Bg5 {[%emt 0:00:09]} Nef6 {[%emt 0:00:44]} 15. Qd6 {[%emt 0:00:44]} h6 {[%emt 0:00:07]} 16. Bd2 {[%emt 0:00:06]} e4 {[%emt 0:00:12]} 17. Nxe4 {[%emt 0:00:03]} Qd8 {[%emt 0:00:07]} 18. Nxf6+ {[%emt 0:00:09]} Nxf6 {[%emt 0:00:02]} 19. Qxd8 Rxd8 {[%emt 0:00:00]} 20. Bc3 {[%emt 0:00:10]} Bd7 {[%emt 0:00:27]} 21. Ne5 {[%emt 0:00:04]} Be8 {[%emt 0:00:04]} 22. Rbd1 {[%emt 0:00:02]} a6 {[%emt 0:00:25]} 23. c5 {[%emt 0:00:04]} Nd5 {[%emt 0:00:06]} 24. Bd4 {[%emt 0:00:05]} Nb4 {[%emt 0:00:06]} 25. Rd2 {[%emt 0:00:20]} Nxa2 {[%emt 0:00:18]} 26. Bf1 {[%emt 0:00:03]} Nb4 {[%emt 0:00:03]} 27. Bc4+ {[%emt 0:00:01]} Kh7 {[%emt 0:00:06]} 28. g4 {[%emt 0:00:17]} fxg4 {[%emt 0:00:19]} 29. hxg4 {[%emt 0:00:03]} Bg6 {[%emt 0:00:09]} 30. Bc3 {[%emt 0:00:10]} Rxd2 {[%emt 0:00:04]} 31. Bxd2 {[%emt 0:00:02]} Nc2 {[%emt 0:00:02]} 32. Re2 {[%emt 0:00:03]} Nd4 {[%emt 0:00:01]} 33. Re3 {[%emt 0:00:03]} Bxe5 {[%emt 0:00:02]} 34. Bc3 {[%emt 0:00:04]} Bg7 {[%emt 0:00:04]} 35. Re7 {[%emt 0:00:03]} Rd8 {[%emt 0:00:00]} 36. Rxb7 {[%emt 0:00:03]} Nf3+ {[%emt 0:00:05]} 37. Kg2 {[%emt 0:00:02]} Nd4 {[%emt 0:00:01]} 38. f4 {[%emt 0:00:03]} Kh8 {[%emt 0:00:01]} 39. f5 {[%emt 0:00:01]} Be8 {[%emt 0:00:01]} 40. Ra7 {[%emt 0:00:05]} Nxf5 {[%emt 0:00:06]} 41. gxf5 {[%emt 0:00:01]} Bxc3 {[%emt 0:00:01]} 42. bxc3 {[%emt 0:00:00]} Bh5 {[%emt 0:00:02]} 43. Rxa6 {[%emt 0:00:02]} Rd2+ {[%emt 0:00:01]} 44. Kg3 {[%emt 0:00:01]} Rc2 {[%emt 0:00:00]} 45. Ra3 {[%emt 0:00:01]} Kg7 {[%emt 0:00:01]} 46. Be6 {[%emt 0:00:02]} Kf6 {[%emt 0:00:01]} 47. Bd7 {[%emt 0:00:01]} Bf7 {[%emt 0:00:05]} 48. Bxc6 {[%emt 0:00:01]} Kxf5 {[%emt 0:00:03]} 49. Bf3 {[%emt 0:00:02]} h5 {[%emt 0:00:02]} 50. c6 {[%emt 0:00:01]} Kg5 {[%emt 0:00:00]} 51. c7 {[%emt 0:00:01]} h4+ {[%emt 0:00:01]} 0-1

[Event "11th LCC Super Blitz 2019"]
[Site "London"]
[Date "2019.12.08"]
[Round "11.8"]
[White "Van Hoof, Alexander"]
[Black "Arapalea, Daniel-Ionel"]
[Result "1-0"]
[ECO "D06"]
[WhiteElo "1968"]
[BlackElo "1840"]
[Annotator "NA"]
[PlyCount "32"]
[EventDate "2019.12.08"]
[EventType "swiss"]
[EventCountry "ENG"]
[SourceTitle "playchess.com"]
[Source "ChessBase"]
[SourceQuality "1"]
[TimeControl "180+2"]

1. Nf3 {[%emt 0:00:01]} d5 {[%emt 0:00:00]} 2. c4 {[%emt 0:00:06]} Nf6 {[%emt 0:00:01]} 3. cxd5 {[%emt 0:00:09]} Nxd5 {[%emt 0:00:02]} 4. d4 {[%emt 0:00:01]} g6 {[%emt 0:00:04]} 5. e4 {[%emt 0:00:01]} Nf6 {[%emt 0:00:01]} 6. Bd3 {[%emt 0:00:02]} Bg7 {[%emt 0:00:01]} 7. O-O {[%emt 0:00:02]} O-O {[%emt 0:00:02]} 8. Nc3 {[%emt 0:00:01]} a6 {[%emt 0:00:02]} 9. h3 {[%emt 0:00:12]} b5 {[%emt 0:00:01]} 10. Be3 {[%emt 0:00:13]} Bb7 {[%emt 0:00:01]} 11. a3 {[%emt 0:00:05]} Nbd7 {[%emt 0:00:09]} 12. Rc1 {[%emt 0:00:03]} Nb6 {[%emt 0:00:01]} 13. b4 {[%emt 0:00:22]} Nc4 {[%emt 0:00:12]} 14. Bxc4 {[%emt 0:00:02]} bxc4 {[%emt 0:00:03]} 15. d5 {[%emt 0:00:11]} Nd7 {[%emt 0:00:18]} 16. Qe2 {[%emt 0:00:11]} a5 {[%emt 0:00:09]} 1-0

[Event "11th LCC Super Blitz 2019"]
[Site "London"]
[Date "2019.12.08"]
[Round "11.8"]
[White "Mohnblatt, Nicolas"]
[Black "Yeo, Klaus Lucas"]
[Result "1-0"]
[ECO "D00"]
[WhiteElo "1689"]
[BlackElo "1176"]
[Annotator "NA"]
[PlyCount "95"]
[EventDate "2019.12.08"]
[EventType "swiss"]
[EventCountry "ENG"]
[SourceTitle "playchess.com"]
[Source "ChessBase"]
[SourceQuality "1"]
[TimeControl "180+2"]

1. d4 {[%emt 0:00:00]} d5 {[%emt 0:00:00]} 2. Nc3 {[%emt 0:00:01]} c6 {[%emt 0:00:01]} 3. Bf4 {[%emt 0:00:01]} Bf5 {[%emt 0:00:01]} 4. e3 {[%emt 0:00:02]} e6 {[%emt 0:00:02]} 5. Nf3 {[%emt 0:00:01]} Bd6 {[%emt 0:00:01]} 6. Ne5 {[%emt 0:00:02]} f6 {[%emt 0:00:06]} 7. Nf3 {[%emt 0:00:05]} Bxf4 {[%emt 0:00:02]} 8. exf4 {[%emt 0:00:02]} Bg6 {[%emt 0:00:01]} 9. Nh4 {[%emt 0:00:09]} Bf7 {[%emt 0:00:02]} 10. Qe2 {[%emt 0:00:22]} Na6 {[%emt 0:00:08]} 11. f5 {[%emt 0:00:12]} Nc7 {[%emt 0:00:04]} 12. g3 {[%emt 0:00:12]} Qd7 {[%emt 0:00:03]} 13. Bh3 {[%emt 0:00:03]} Kf8 {[%emt 0:00:14]} 14. O-O-O {[%emt 0:00:12]} exf5 {[%emt 0:00:03]} 15. Bxf5 {[%emt 0:00:11]} Be6 {[%emt 0:00:01]} 16. Qf3 {[%emt 0:00:43]} Bxf5 {[%emt 0:00:19]} 17. Nxf5 {[%emt 0:00:02]} Ne7 {[%emt 0:00:02]} 18. Ne3 {[%emt 0:00:01]} Kf7 {[%emt 0:00:06]} 19. Ng4 {[%emt 0:00:03]} h5 {[%emt 0:00:06]} 20. Ne5+ {[%emt 0:00:01]} Ke6 {[%emt 0:00:05]} 21. Nxd7 {[%emt 0:00:02]} Kxd7 {[%emt 0:00:02]} 22. Rhe1 {[%emt 0:00:03]} Rae8 {[%emt 0:00:13]} 23. g4 {[%emt 0:00:06]} hxg4 {[%emt 0:00:06]} 24. Qxg4+ {[%emt 0:00:01]} Kd8 {[%emt 0:00:01]} 25. h3 {[%emt 0:00:09]} g6 {[%emt 0:00:07]} 26. Re2 {[%emt 0:00:07]} f5 {[%emt 0:00:01]} 27. Qg3 {[%emt 0:00:02]} Na8 {[%emt 0:00:23]} 28. Qd6+ {[%emt 0:00:04]} Kc8 {[%emt 0:00:03]} 29. Rxe7 {[%emt 0:00:02]} Rxe7 {[%emt 0:00:02]} 30. Qxe7 {[%emt 0:00:01]} Nc7 {[%emt 0:00:09]} 31. h4 {[%emt 0:00:07]} Re8 {[%emt 0:00:03]} 32. Qf6 {[%emt 0:00:03]} Re6 {[%emt 0:00:02]} 33. Qf8+ {[%emt 0:00:05]} Re8 {[%emt 0:00:02]} 34. Qh6 {[%emt 0:00:02]} Re6 {[%emt 0:00:03]} 35. Qg5 {[%emt 0:00:01]} Kd7 {[%emt 0:00:02]} 36. Kd2 {[%emt 0:00:01]} Nb5 {[%emt 0:00:03]} 37. Nxb5 {[%emt 0:00:03]} cxb5 {[%emt 0:00:04]} 38. Re1 {[%emt 0:00:02]} Rd6 {[%emt 0:00:00]} 39. Re7+ {[%emt 0:00:02]} Kc6 {[%emt 0:00:02]} 40. Rg7 {[%emt 0:00:06]} b6 {[%emt 0:00:12]} 41. Rxg6 {[%emt 0:00:02]} Rxg6 {[%emt 0:00:01]} 42. Qxg6+ {[%emt 0:00:01]} Kb7 {[%emt 0:00:00]} 43. Qxf5 {[%emt 0:00:02]} Ka6 {[%emt 0:00:01]} 44. h5 {[%emt 0:00:08]} Ka5 {[%emt 0:00:02]} 45. h6 {[%emt 0:00:02]} a6 {[%emt 0:00:02]} 46. Qxd5 {[%emt 0:00:25]} Ka4 {[%emt 0:00:02]} 47. Qb3+ {[%emt 0:00:03]} Ka5 {[%emt 0:00:04]} 48. Qa3# {[%emt 0:00:04]} 1-0

[Event "11th LCC Super Blitz 2019"]
[Site "London"]
[Date "2019.12.08"]
[Round "11.9"]
[White "Rahman, Asad"]
[Black "Davis, Holden"]
[Result "1-0"]
[ECO "C05"]
[WhiteElo "1923"]
[BlackElo "1769"]
[Annotator "NA"]
[PlyCount "43"]
[EventDate "2019.12.08"]
[EventType "swiss"]
[EventCountry "ENG"]
[SourceTitle "playchess.com"]
[Source "ChessBase"]
[SourceQuality "1"]
[TimeControl "180+2"]

1. e4 {[%emt 0:00:00]} e6 {[%emt 0:00:00]} 2. d4 {[%emt 0:00:01]} d5 {[%emt 0:00:00]} 3. Nd2 {[%emt 0:00:02]} Nf6 {[%emt 0:00:00]} 4. exd5 {[%emt 0:00:03]} exd5 {[%emt 0:00:02]} 5. Ngf3 {[%emt 0:00:01]} Bd6 {[%emt 0:00:03]} 6. Bd3 {[%emt 0:00:00]} Bg4 {[%emt 0:00:02]} 7. O-O {[%emt 0:00:02]} O-O {[%emt 0:00:02]} 8. c4 {[%emt 0:00:07]} dxc4 {[%emt 0:00:01]} 9. Nxc4 {[%emt 0:00:01]} Be7 {[%emt 0:00:09]} 10. Be2 {[%emt 0:00:03]} c6 {[%emt 0:00:06]} 11. Nce5 {[%emt 0:00:06]} Bxf3 {[%emt 0:00:05]} 12. Bxf3 {[%emt 0:00:08]} Nd5 {[%emt 0:00:06]} 13. Re1 {[%emt 0:00:19]} Bf6 {[%emt 0:00:04]} 14. Ng4 {[%emt 0:00:02]} Bg5 {[%emt 0:00:07]} 15. Bxd5 {[%emt 0:00:19]} Qxd5 {[%emt 0:00:04]} 16. Re5 {[%emt 0:00:03]} Qd6 {[%emt 0:00:11]} 17. Rxg5 {[%emt 0:00:06]} f5 {[%emt 0:00:06]} 18. Ne5 {[%emt 0:00:09]} f4 {[%emt 0:00:13]} 19. Qg4 {[%emt 0:00:11]} Qf6 {[%emt 0:00:02]} 20. Bxf4 {[%emt 0:00:10]} Qxf4 {[%emt 0:00:20]} 21. Rxg7+ {[%emt 0:00:01]} Kh8 {[%emt 0:00:01]} 22. Rg8+ {[%emt 0:00:01]} 1-0

[Event "11th LCC Super Blitz 2019"]
[Site "London"]
[Date "2019.12.08"]
[Round "11.9"]
[White "Ismail, Mohammed Aayan"]
[Black "Patel, Rishi"]
[Result "1-0"]
[ECO "C68"]
[WhiteElo "1641"]
[BlackElo "1899"]
[Annotator "NA"]
[PlyCount "129"]
[EventDate "2019.12.08"]
[EventType "swiss"]
[EventCountry "ENG"]
[SourceTitle "playchess.com"]
[Source "ChessBase"]
[SourceQuality "1"]
[TimeControl "180+2"]

1. e4 {[%emt 0:03:41]} e5 2. Nf3 {[%emt 0:00:01]} Nc6 3. Bb5 a6 {[%emt 0:00:02]} 4. Bxc6 {[%emt 0:00:03]} bxc6 {[%emt 0:00:04]} 5. O-O {[%emt 0:00:25]} d6 6. d4 {[%emt 0:00:02]} exd4 {[%emt 0:00:06]} 7. Qxd4 {[%emt 0:00:08]} Nf6 {[%emt 0:00:41]} 8. e5 {[%emt 0:00:13]} Nd5 {[%emt 0:00:02]} 9. Re1 {[%emt 0:00:11]} Be7 {[%emt 0:00:05]} 10. exd6 {[%emt 0:00:08]} Qxd6 {[%emt 0:00:03]} 11. Qxg7 {[%emt 0:00:07]} Rf8 {[%emt 0:00:12]} 12. Bh6 {[%emt 0:00:09]} Be6 {[%emt 0:00:23]} 13. Qxh7 {[%emt 0:00:21]} Nf6 {[%emt 0:00:04]} 14. Qd3 {[%emt 0:00:13]} Qxd3 {[%emt 0:00:16]} 15. cxd3 {[%emt 0:00:01]} Rh8 {[%emt 0:00:02]} 16. Bg5 {[%emt 0:00:16]} O-O-O {[%emt 0:00:04]} 17. d4 {[%emt 0:00:05]} Rhg8 {[%emt 0:00:07]} 18. h4 {[%emt 0:00:04]} Nd5 {[%emt 0:00:15]} 19. Bxe7 {[%emt 0:00:11]} Nxe7 {[%emt 0:00:01]} 20. Nc3 {[%emt 0:00:09]} Ng6 {[%emt 0:00:02]} 21. g3 {[%emt 0:00:12]} Bg4 {[%emt 0:00:04]} 22. Ne5 {[%emt 0:00:04]} Nxe5 {[%emt 0:00:16]} 23. Rxe5 {[%emt 0:00:02]} Rxd4 {[%emt 0:00:16]} 24. Rae1 Rgd8 {[%emt 0:00:07]} 25. Re8 {[%emt 0:00:05]} Kb7 {[%emt 0:00:13]} 26. Rxd8 {[%emt 0:00:01]} Rxd8 {[%emt 0:00:02]} 27. b3 {[%emt 0:00:12]} Rd3 {[%emt 0:00:04]} 28. Ne4 {[%emt 0:00:02]} Kb6 {[%emt 0:00:07]} 29. Nf6 {[%emt 0:00:05]} Be6 {[%emt 0:00:02]} 30. h5 {[%emt 0:00:02]} Rd8 {[%emt 0:00:07]} 31. h6 {[%emt 0:00:03]} Rh8 {[%emt 0:00:02]} 32. h7 {[%emt 0:00:02]} Bf5 {[%emt 0:00:02]} 33. Re7 {[%emt 0:00:02]} Bxh7 {[%emt 0:00:05]} 34. Rxf7 {[%emt 0:00:02]} Bb1 {[%emt 0:00:01]} 35. a3 {[%emt 0:00:02]} Ba2 36. Rh7 {[%emt 0:00:06]} Rf8 {[%emt 0:00:02]} 37. Nd7+ {[%emt 0:00:02]} Kb5 {[%emt 0:00:02]} 38. Nxf8 Bxb3 {[%emt 0:00:01]} 39. g4 Ka4 {[%emt 0:00:02]} 40. g5 Kxa3 {[%emt 0:00:02]} 41. g6 {[%emt 0:00:01]} c5 {[%emt 0:00:02]} 42. Rh3 c4 {[%emt 0:00:03]} 43. Rxb3+ {[%emt 0:00:01]} cxb3 {[%emt 0:00:03]} 44. g7 b2 {[%emt 0:00:02]} 45. g8=Q {[%emt 0:00:03]} b1=Q+ {[%emt 0:00:02]} 46. Kh2 {[%emt 0:00:03]} c5 {[%emt 0:00:14]} 47. Qg3+ {[%emt 0:00:04]} Qb3 {[%emt 0:00:04]} 48. Qxb3+ {[%emt 0:00:05]} Kxb3 {[%emt 0:00:01]} 49. Nd7 {[%emt 0:00:02]} c4 {[%emt 0:00:05]} 50. Ne5 c3 51. f4 {[%emt 0:00:02]} c2 {[%emt 0:00:03]} 52. Nd3 Kc3 53. Nc1 {[%emt 0:00:01]} Kd4 54. Kg3 {[%emt 0:00:01]} Ke4 {[%emt 0:00:01]} 55. Kg4 Kd5 {[%emt 0:00:02]} 56. f5 Kd6 {[%emt 0:00:01]} 57. Kg5 {[%emt 0:00:01]} Ke7 58. Kg6 {[%emt 0:00:02]} Kf8 59. Kf6 {[%emt 0:00:01]} a5 {[%emt 0:00:02]} 60. Ke5 {[%emt 0:00:01]} Ke8 {[%emt 0:00:02]} 61. Ke6 {[%emt 0:00:03]} a4 62. f6 {[%emt 0:00:01]} Kf8 {[%emt 0:00:06]} 63. f7 {[%emt 0:00:02]} a3 {[%emt 0:00:01]} 64. Na2 c1=Q {[%emt 0:00:15]} 65. Nxc1 1-0

[Event "11th LCC Super Blitz 2019"]
[Site "London"]
[Date "2019.12.08"]
[Round "11.10"]
[White "Van Zyl-Rudd, Jack"]
[Black "Saidmurodov, Shahjahon"]
[Result "1-0"]
[ECO "C66"]
[WhiteElo "2290"]
[BlackElo "1812"]
[Annotator "NA"]
[PlyCount "177"]
[EventDate "2019.12.08"]
[EventType "swiss"]
[EventCountry "ENG"]
[SourceTitle "playchess.com"]
[Source "ChessBase"]
[SourceQuality "1"]
[TimeControl "180+2"]

1. e4 {[%emt 0:00:01]} e5 {[%emt 0:00:00]} 2. Nf3 {[%emt 0:00:02]} Nc6 {[%emt 0:00:00]} 3. Nc3 {[%emt 0:00:13]} Be7 {[%emt 0:00:13]} 4. Bb5 {[%emt 0:00:06]} d6 {[%emt 0:00:02]} 5. d4 {[%emt 0:00:02]} exd4 {[%emt 0:00:08]} 6. Nxd4 {[%emt 0:00:01]} Bd7 {[%emt 0:00:01]} 7. O-O {[%emt 0:00:05]} Nf6 {[%emt 0:00:08]} 8. Nxc6 {[%emt 0:00:07]} bxc6 {[%emt 0:00:04]} 9. Bd3 {[%emt 0:00:01]} O-O {[%emt 0:00:51]} 10. h3 {[%emt 0:00:01]} Re8 {[%emt 0:00:04]} 11. Bg5 {[%emt 0:00:16]} h6 {[%emt 0:00:16]} 12. Be3 {[%emt 0:00:05]} Bf8 {[%emt 0:00:04]} 13. Qd2 {[%emt 0:00:04]} d5 {[%emt 0:00:03]} 14. exd5 {[%emt 0:00:03]} cxd5 {[%emt 0:00:01]} 15. Bd4 {[%emt 0:00:15]} Be6 {[%emt 0:00:07]} 16. Qf4 {[%emt 0:00:04]} Bd6 {[%emt 0:00:05]} 17. Qf3 {[%emt 0:00:04]} Be7 {[%emt 0:00:07]} 18. Rad1 {[%emt 0:00:10]} c5 {[%emt 0:00:08]} 19. Bxf6 {[%emt 0:00:02]} Bxf6 {[%emt 0:00:07]} 20. Bb5 {[%emt 0:00:01]} Re7 {[%emt 0:00:53]} 21. Bc6 {[%emt 0:00:09]} Rb8 {[%emt 0:00:02]} 22. Bxd5 {[%emt 0:00:02]} Qe8 {[%emt 0:00:04]} 23. Bxe6 {[%emt 0:00:07]} Rxe6 {[%emt 0:00:03]} 24. Nd5 {[%emt 0:00:05]} Qc8 {[%emt 0:00:13]} 25. Nxf6+ {[%emt 0:00:04]} Rxf6 {[%emt 0:00:01]} 26. Qc3 {[%emt 0:00:02]} Rfb6 {[%emt 0:00:03]} 27. b3 {[%emt 0:00:02]} Qf5 {[%emt 0:00:02]} 28. Qd3 {[%emt 0:00:07]} Qg5 {[%emt 0:00:03]} 29. Rfe1 {[%emt 0:00:08]} g6 {[%emt 0:00:02]} 30. Qd7 {[%emt 0:00:06]} R8b7 {[%emt 0:00:04]} 31. Re8+ {[%emt 0:00:03]} Kg7 {[%emt 0:00:00]} 32. Qc8 {[%emt 0:00:02]} Qf4 {[%emt 0:00:02]} 33. Rg8+ {[%emt 0:00:03]} Kf6 {[%emt 0:00:01]} 34. Qd8+ {[%emt 0:00:01]} Re7 {[%emt 0:00:00]} 35. Re1 {[%emt 0:00:08]} Rbe6 {[%emt 0:00:02]} 36. Rxe6+ {[%emt 0:00:01]} Kxe6 {[%emt 0:00:03]} 37. Qd1 {[%emt 0:00:21]} Kf6 {[%emt 0:00:02]} 38. Rd8 {[%emt 0:00:09]} Re6 {[%emt 0:00:02]} 39. g3 {[%emt 0:00:06]} Qe5 {[%emt 0:00:04]} 40. Rd5 {[%emt 0:00:04]} Qc7 {[%emt 0:00:02]} 41. Qf3+ {[%emt 0:00:04]} Kg7 {[%emt 0:00:01]} 42. Kg2 {[%emt 0:00:03]} Qc6 {[%emt 0:00:02]} 43. Rd3 {[%emt 0:00:04]} Qa6 {[%emt 0:00:02]} 44. a4 {[%emt 0:00:01]} Qb6 {[%emt 0:00:01]} 45. Qd5 {[%emt 0:00:03]} Qc7 {[%emt 0:00:01]} 46. Rc3 {[%emt 0:00:02]} Re5 {[%emt 0:00:03]} 47. Qd3 {[%emt 0:00:03]} Qc6+ {[%emt 0:00:02]} 48. Qf3 {[%emt 0:00:01]} Qc7 {[%emt 0:00:01]} 49. Qf4 {[%emt 0:00:03]} Qc6+ {[%emt 0:00:02]} 50. Qf3 {[%emt 0:00:04]} Qc7 {[%emt 0:00:02]} 51. Rc4 {[%emt 0:00:03]} Rf5 {[%emt 0:00:03]} 52. Qe4 {[%emt 0:00:02]} Qd6 {[%emt 0:00:04]} 53. Rc3 {[%emt 0:00:10]} Qd2 {[%emt 0:00:02]} 54. Rf3 {[%emt 0:00:01]} Rd5 {[%emt 0:00:01]} 55. c4 {[%emt 0:00:06]} Rd7 {[%emt 0:00:01]} 56. Qe5+ {[%emt 0:00:01]} Kh7 {[%emt 0:00:02]} 57. Qe8 {[%emt 0:00:03]} Qd4 {[%emt 0:00:04]} 58. Rxf7+ {[%emt 0:00:03]} Rxf7 {[%emt 0:00:02]} 59. Qxf7+ {[%emt 0:00:01]} Kh8 {[%emt 0:00:00]} 60. Qxg6 {[%emt 0:00:03]} Qc3 {[%emt 0:00:02]} 61. Qxh6+ {[%emt 0:00:02]} Kg8 {[%emt 0:00:01]} 62. Qe6+ {[%emt 0:00:02]} Kh7 {[%emt 0:00:01]} 63. Qe4+ {[%emt 0:00:01]} Kh8 {[%emt 0:00:01]} 64. Qe3 {[%emt 0:00:01]} Qb4 {[%emt 0:00:03]} 65. h4 {[%emt 0:00:01]} Qb7+ {[%emt 0:00:01]} 66. Qf3 {[%emt 0:00:01]} Qe7 {[%emt 0:00:01]} 67. h5 {[%emt 0:00:01]} Qe5 {[%emt 0:00:01]} 68. g4 {[%emt 0:00:01]} Qd4 {[%emt 0:00:02]} 69. h6 {[%emt 0:00:01]} Qd6 {[%emt 0:00:01]} 70. g5 {[%emt 0:00:02]} Qd7 {[%emt 0:00:05]} 71. Qf6+ {[%emt 0:00:01]} Kh7 {[%emt 0:00:00]} 72. Qg7+ {[%emt 0:00:03]} Qxg7 {[%emt 0:00:01]} 73. hxg7 {[%emt 0:00:02]} Kxg7 {[%emt 0:00:01]} 74. f4 {[%emt 0:00:01]} Kg6 {[%emt 0:00:00]} 75. Kg3 {[%emt 0:00:01]} Kf5 {[%emt 0:00:02]} 76. Kf3 {[%emt 0:00:01]} a5 {[%emt 0:00:01]} 77. Kg3 {[%emt 0:00:01]} Kg6 {[%emt 0:00:00]} 78. Kg4 {[%emt 0:00:01]} Kg7 {[%emt 0:00:01]} 79. f5 {[%emt 0:00:01]} Kf7 {[%emt 0:00:01]} 80. Kf4 {[%emt 0:00:02]} Kg7 {[%emt 0:00:00]} 81. Ke5 {[%emt 0:00:01]} Kf7 {[%emt 0:00:01]} 82. g6+ {[%emt 0:00:01]} Kg7 {[%emt 0:00:01]} 83. Ke6 {[%emt 0:00:01]} Kh6 {[%emt 0:00:01]} 84. Kf7 {[%emt 0:00:01]} Kg5 {[%emt 0:00:00]} 85. f6 {[%emt 0:00:01]} Kh5 {[%emt 0:00:01]} 86. g7 {[%emt 0:00:01]} Kh6 {[%emt 0:00:04]} 87. g8=Q {[%emt 0:00:03]} Kh5 {[%emt 0:00:01]} 88. Qg3 {[%emt 0:00:02]} Kh6 {[%emt 0:00:02]} 89. Qg6# {[%emt 0:00:01]} 1-0

[Event "11th LCC Super Blitz 2019"]
[Site "London"]
[Date "2019.12.08"]
[Round "11.10"]
[White "Gudenas, Motiejus"]
[Black "Jackson, Julius"]
[Result "1-0"]
[ECO "C06"]
[WhiteElo "1993"]
[BlackElo "1584"]
[Annotator "NA"]
[PlyCount "112"]
[EventDate "2019.12.08"]
[EventType "swiss"]
[EventCountry "ENG"]
[SourceTitle "playchess.com"]
[Source "ChessBase"]
[SourceQuality "1"]
[TimeControl "180+2"]

1. e4 {[%emt 0:00:00]} e6 {[%emt 0:00:00]} 2. d4 {[%emt 0:00:04]} d5 {[%emt 0:00:00]} 3. Bd3 {[%emt 0:00:01]} Nf6 {[%emt 0:00:05]} 4. e5 {[%emt 0:00:02]} Nfd7 {[%emt 0:00:01]} 5. Nd2 {[%emt 0:00:02]} c5 {[%emt 0:00:01]} 6. c3 {[%emt 0:00:01]} Nc6 {[%emt 0:00:01]} 7. Ne2 {[%emt 0:00:02]} Qb6 {[%emt 0:00:03]} 8. O-O {[%emt 0:00:07]} cxd4 {[%emt 0:00:05]} 9. cxd4 {[%emt 0:00:02]} Nxd4 {[%emt 0:00:03]} 10. Nxd4 {[%emt 0:00:02]} Qxd4 {[%emt 0:00:02]} 11. Nf3 {[%emt 0:00:02]} Qb6 {[%emt 0:00:08]} 12. Qa4 {[%emt 0:00:05]} Be7 {[%emt 0:00:10]} 13. Be3 {[%emt 0:00:20]} Qb4 {[%emt 0:00:11]} 14. Qc2 {[%emt 0:00:05]} Nc5 {[%emt 0:00:18]} 15. a3 {[%emt 0:00:10]} Qb3 {[%emt 0:00:29]} 16. Bxc5 {[%emt 0:00:37]} Qxc2 {[%emt 0:00:01]} 17. Bxc2 {[%emt 0:00:02]} Bxc5 {[%emt 0:00:01]} 18. Rac1 {[%emt 0:00:04]} Bb6 {[%emt 0:00:07]} 19. Bd3 {[%emt 0:00:14]} O-O {[%emt 0:00:12]} 20. Rc2 {[%emt 0:00:12]} Bd7 {[%emt 0:00:03]} 21. Rfc1 {[%emt 0:00:03]} Rac8 {[%emt 0:00:02]} 22. Kf1 {[%emt 0:00:12]} Rxc2 {[%emt 0:00:04]} 23. Rxc2 {[%emt 0:00:01]} Rc8 {[%emt 0:00:01]} 24. Rxc8+ {[%emt 0:00:05]} Bxc8 {[%emt 0:00:00]} 25. Bb5 {[%emt 0:00:01]} Kf8 {[%emt 0:00:07]} 26. Ke2 {[%emt 0:00:03]} Ke7 {[%emt 0:00:05]} 27. b3 {[%emt 0:00:04]} h6 {[%emt 0:00:01]} 28. Nd2 {[%emt 0:00:03]} Bd7 {[%emt 0:00:02]} 29. Bxd7 {[%emt 0:00:03]} Kxd7 {[%emt 0:00:01]} 30. f4 {[%emt 0:00:07]} g5 {[%emt 0:00:20]} 31. g3 {[%emt 0:00:08]} Bg1 {[%emt 0:00:01]} 32. Nf3 {[%emt 0:00:01]} Bb6 {[%emt 0:00:06]} 33. fxg5 {[%emt 0:00:03]} hxg5 {[%emt 0:00:02]} 34. Nxg5 {[%emt 0:00:02]} Ke7 {[%emt 0:00:02]} 35. g4 {[%emt 0:00:09]} f6 {[%emt 0:00:01]} 36. Nf3 {[%emt 0:00:06]} Bc7 {[%emt 0:00:09]} 37. exf6+ {[%emt 0:00:03]} Kxf6 {[%emt 0:00:00]} 38. h3 {[%emt 0:00:03]} e5 {[%emt 0:00:04]} 39. h4 {[%emt 0:00:14]} e4 {[%emt 0:00:05]} 40. Nd4 {[%emt 0:00:05]} Bb6 {[%emt 0:00:10]} 41. Nf5 {[%emt 0:00:03]} d4 {[%emt 0:00:12]} 42. Nd6 {[%emt 0:00:05]} d3+ {[%emt 0:00:10]} 43. Kd2 {[%emt 0:00:05]} Ke5 {[%emt 0:00:11]} 44. Nc4+ {[%emt 0:00:02]} Kf6 {[%emt 0:00:14]} 45. Nxb6 {[%emt 0:00:03]} axb6 {[%emt 0:00:01]} 46. Ke3 {[%emt 0:00:04]} Ke5 {[%emt 0:00:08]} 47. b4 {[%emt 0:00:02]} b5 {[%emt 0:00:00]} 48. g5 {[%emt 0:00:06]} Kf5 {[%emt 0:00:05]} 49. Kd2 {[%emt 0:00:02]} b6 {[%emt 0:00:03]} 50. Ke3 {[%emt 0:00:02]} Ke5 {[%emt 0:00:09]} 51. h5 {[%emt 0:00:03]} Kf5 {[%emt 0:00:01]} 52. g6 {[%emt 0:00:05]} Kf6 {[%emt 0:00:01]} 53. Kd2 {[%emt 0:00:02]} Kg7 {[%emt 0:00:03]} 54. Kc3 {[%emt 0:00:02]} Kh6 {[%emt 0:00:02]} 55. Kb2 {[%emt 0:00:04]} Kg7 {[%emt 0:00:03]} 56. Kc1 {[%emt 0:00:01]} e3 {[%emt 0:00:05]} 1-0

[Event "11th LCC Super Blitz 2019"]
[Site "London"]
[Date "2019.12.08"]
[Round "11.10"]
[White "Sheikh, Anum"]
[Black "Rushbrooke, Remy"]
[Result "0-1"]
[ECO "C42"]
[WhiteElo "1560"]
[BlackElo "1877"]
[Annotator "NA"]
[PlyCount "49"]
[EventDate "2019.12.08"]
[EventType "swiss"]
[EventCountry "ENG"]
[SourceTitle "playchess.com"]
[Source "ChessBase"]
[SourceQuality "1"]
[TimeControl "180+2"]

1. e4 {[%emt 0:00:00]} e5 {[%emt 0:00:00]} 2. Nf3 {[%emt 0:00:00]} Nf6 {[%emt 0:00:00]} 3. Nxe5 {[%emt 0:00:03]} d6 {[%emt 0:00:01]} 4. Nf3 {[%emt 0:00:02]} Nxe4 {[%emt 0:00:01]} 5. Nc3 {[%emt 0:00:01]} Nxc3 {[%emt 0:00:01]} 6. dxc3 {[%emt 0:00:01]} Be7 {[%emt 0:00:01]} 7. Bd3 {[%emt 0:00:04]} O-O {[%emt 0:00:03]} 8. Be3 {[%emt 0:00:05]} Nd7 {[%emt 0:00:01]} 9. h4 {[%emt 0:00:03]} Ne5 {[%emt 0:00:01]} 10. Nxe5 {[%emt 0:01:02]} dxe5 {[%emt 0:00:04]} 11. Qh5 {[%emt 0:00:03]} f5 {[%emt 0:00:19]} 12. Bg5 {[%emt 0:00:09]} Be6 {[%emt 0:00:10]} 13. O-O-O {[%emt 0:00:06]} Qe8 {[%emt 0:00:10]} 14. Qxe8 {[%emt 0:00:09]} Raxe8 {[%emt 0:00:11]} 15. Bxe7 {[%emt 0:00:03]} Rxe7 {[%emt 0:00:01]} 16. Kb1 {[%emt 0:00:02]} e4 {[%emt 0:00:14]} 17. Be2 {[%emt 0:00:05]} f4 {[%emt 0:00:18]} 18. Rd4 {[%emt 0:00:03]} Bc8 {[%emt 0:00:30]} 19. Bc4+ {[%emt 0:00:08]} Kh8 {[%emt 0:00:01]} 20. Re1 {[%emt 0:00:06]} Rfe8 {[%emt 0:00:11]} 21. Bd5 {[%emt 0:00:07]} e3 {[%emt 0:00:03]} 22. Rxf4 {[%emt 0:00:21]} g5 {[%emt 0:00:34]} 23. Rf7 {[%emt 0:00:39]} exf2 {[%emt 0:00:29]} 24. Rexe7 {[%emt 0:00:14]} Rxe7 {[%emt 0:00:02]} 25. Rf4 {[%emt 0:00:24]} 0-1